Cogmind - Beta 15 @@@ ROGUE MODE // 2025.08.29 @ 04:19:57 Player: shapeshifter Result: Destroyed by 8R-AWN with 8R-AWN's Boregun Performance ------------- Evolutions (1) 500 Regions Visited (5) 1000 Robots Destroyed (63) 315 Value Destroyed (1484) 1484 Prototype IDs (27) 540 Alien Tech Used (0) 0 Bonus (423) 423 TOTAL SCORE: 4262 Bonus ------- High Alert Combat Kills 8 Follower Combat Kills 132 Aligned with FarCom 300 Friendly Fire -17 Cogmind --------- Core Integrity 0/400 Matter 7/300 Energy 15/100 System Corruption 0% Temperature Hot (255) Movement Treading (570) Ox5 Location -9/Exiles Parts ------- > --- POWER (1) -------- (None) > --- PROPULSION (2) --- Armored Treads Armored Treads > --- UTILITY (3) ------ Humpback Medium Armor Plating > --- WEAPON (3) ------- Firepult > --- INVENTORY (35) --- Improved Treads Compact Wheel Compact Wheel High-capacity Storage Unit Large Matter Pod (0) Army-in-a-Box (30/30) Heavy EM Shotgun AWS/Gauss Mini Grenade Launcher Peak State ------------ > --- POWER ------------ Heavy Ion Engine > --- PROPULSION ------- Armored Treads Armored Treads > --- UTILITY ---------- Humpback Medium Armor Plating > --- WEAPON ----------- Firepult Assault Rifle > --- INVENTORY -------- Light Ion Engine Light Treads Improved Treads Armored Treads Armored Treads Compact Wheel Compact Wheel High-capacity Storage Unit Humpback Humpback Large Matter Pod Medium Armor Plating Medium Armor Plating Medium Armor Plating Army-in-a-Box Heavy EM Shotgun AWS/Gauss Mini Grenade Launcher [Rating: 44] Favorites ----------- Power Light Angular Momentum Engine Engine Light Angular Momentum Engine Propulsion Light Treads Treads Light Treads Wheel Compact Wheel Utility Light Armor Plating Device Seismic Detector Storage Small Storage Unit Processor Target Analyzer Protection Light Armor Plating Weapon Heavy Assault Rifle Energy Gun EM Pulse Gun Energy Cannon Firepult Ballistic Gun Heavy Assault Rifle Launcher Grenade Launcher Impact Weapon Mace Build | -11 -10 -10 -9 -9 -9 ------- Run | Yrd Mat Min Mat Min Exi Slots Evolved 2 | . . . 2 . . Power . | . . . . . . Propulsion . | . . . . . . Utility 1 | . . . 1 . . Weapon 1 | . . . 1 . . Parts Attached 57 | 7 1 . 33 . 16 Power 6 | 1 . . 5 . . Engine 6 | 1 . . 5 . . Core . | . . . . . . Reactor . | . . . . . . Propulsion 14 | 2 . . 6 . 6 Treads 12 | 2 . . 6 . 4 Leg . | . . . . . . Wheel 2 | . . . . . 2 Hover . | . . . . . . Flight . | . . . . . . Utility 23 | 2 . . 14 . 7 Device 1 | 1 . . . . . Storage 7 | 1 . . 3 . 3 Processor 1 | . . . 1 . . Hackware . | . . . . . . Protection 14 | . . . 10 . 4 Artifact . | . . . . . . Weapon 14 | 2 1 . 8 . 3 Energy Gun 3 | 1 . . 1 . 1 Energy Cannon 1 | . . . . . 1 Ballistic Gun 6 | 1 . . 4 . 1 Ballistic Cannon . | . . . . . . Launcher 2 | . 1 . 1 . . Special Weapon . | . . . . . . Impact Weapon 2 | . . . 2 . . Slashing Weapon . | . . . . . . Piercing Weapon . | . . . . . . Special Melee Weapon . | . . . . . . Unidentified Prototypes 2 | . . . 2 . . Parts Lost 10 | . . . 1 . 9 Power 1 | . . . . . 1 Propulsion 1 | . . . . . 1 Utility 4 | . . . 1 . 3 Weapon 4 | . . . . . 4 Highest Loss Streak 5 | . . . 1 . 5 To Critical Strikes 4 | . . . . . 4 Average Backups 11 | 2 7 8 10 15 17 Power . | . 1 1 . 1 1 Propulsion 4 | 1 2 3 5 6 5 Utility 3 | . 2 3 3 5 7 Weapon 2 | . . 1 1 3 3 Tool/Special . | . . . . . . Unused Backups 20 | 1 2 . 10 . 7 Power 4 | . . . 1 . 3 Propulsion 2 | . . . 2 . . Utility 10 | . 2 . 5 . 3 Weapon 4 | 1 . . 2 . 1 Tool/Special . | . . . . . . Average Slot Usage (%) 95 | . 100 100 98 100 83 Engine 11 | . 14 14 11 11 10 Treads 20 | . 28 28 22 22 10 Wheel 2 | . . . . . 11 Device 3 | . 14 14 1 . . Storage 11 | . 14 14 11 11 11 Protection 13 | . . . 19 22 9 Energy Gun 2 | . 10 14 1 . . Ballistic Gun 26 | . 14 14 29 29 29 Peak Build Rating 44 | 7 8 7 21 20 44 Average Rating 15 | 5 7 7 16 20 22 On Entrance 10 | . 7 7 7 20 20 Naked Turns . | . . . . . . Heaviest Build 223 | 14 15 14 51 51 223 Greatest Support 43 | 40 40 40 43 43 43 Greatest Overweight (x) 6 | . . . 1 1 6 Average Overweight (x) . | . . . . 1 4 Largest Inventory Capacity 35 | 8 8 8 15 15 35 Average Capacity 14 | 7 8 8 11 15 28 Most Carried 33 | 6 8 8 15 15 33 Average Carried 12 | 3 7 8 10 15 22 Final Capacity 35 | 8 8 8 15 15 35 Final Carried 15 | 4 8 8 15 15 15 Class Distribution -------------------- 51% | Scavenger-Tank 27% | Mutant 9% | Hauler-Gunner 5% | Scavenger-Mutant Dominant Class ---------------- Mutant | -10/Materials Mutant | -10/Mines Scavenger-Tank | -9/Materials Scavenger-Tank | -9/Mines Hauler-Gunner | -9/Exiles Resources | -11 -10 -10 -9 -9 -9 ----------- Run | Yrd Mat Min Mat Min Exi Matter Collected 1856 | 288 197 . 1131 13 227 Remotely . | . . . . . . Salvage Created 1796 | 98 511 . 1144 30 13 Parts 118 | 12 25 . 76 5 . Haulers Intercepted 3 | . . . 3 . . Recyclers Shooed 2 | . . . 2 . . Parts Field Recycled . | . . . . . . Retrieved Matter . | . . . . . . Parts Self-Destructed . | . . . . . . Prevented . | . . . . . . Kills | -11 -10 -10 -9 -9 -9 ------- Run | Yrd Mat Min Mat Min Exi Combat Hostiles Destroyed 46 | . 14 . 24 4 4 Guns 19 | . . . 19 . . AOE 27 | . 14 . 5 4 4 Classes Destroyed 11 | 1 4 . 5 . 1 Worker 1 | . . . 1 . . Builder 3 | . . . 3 . . Tunneler 5 | 4 1 . . . . Hauler 3 | . . . 3 . . Recycler 3 | . 2 . 1 . . Watcher 6 | . 2 . 4 . . Swarmer 11 | . 3 . 4 4 . Grunt 25 | . 11 . 14 . . Brawler 1 | . . . 1 . . Sentry 5 | . . . 5 . . Assembled 4 | . . . . . 4 Best Kill Streak 8 | 2 6 . 8 4 4 Combat Bots Only 5 | . 5 . 5 4 4 Max Kills in Single Turn 3 | 1 3 . 3 3 2 Gunslinging . | . . . . . . Exploded 3 | . 2 . 1 3 2 Melee . | . . . . . . Uniques/NPCs Destroyed . | . . . . . . Combat | -11 -10 -10 -9 -9 -9 -------- Run | Yrd Mat Min Mat Min Exi Hostile Shots Fired 264 | . 31 . 120 4 109 Missed 68 | . 13 . 40 2 13 Hits 196 | . 18 . 80 2 96 Projectile 196 | . 18 . 80 2 96 Critical Strikes 43 | . 1 . 1 . 41 Damage Taken 3485 | . 314 . 1003 16 2152 Core 487 | . 86 . 85 . 316 Absorbed by Shields . | . . . . . . Core Remaining (%) 82 | 100 . 65 . . . Volleys Fired 173 | 18 26 . 92 2 35 Largest 3 | 2 2 . 3 1 3 Hottest 250 | 60 60 . 83 30 250 Shots Fired 360 | 36 33 . 229 2 60 Gun 322 | 36 14 . 222 . 50 Cannon 6 | . . . . . 6 Launcher 32 | . 19 . 7 2 4 Special . | . . . . . . Kinetic 279 | 18 7 . 218 . 36 Thermal 6 | . . . . . 6 Explosive 32 | . 19 . 7 2 4 Electromagnetic 43 | 18 7 . 4 . 14 Robot Hit Streak 11 | 6 6 . 10 . 11 Robot Miss Streak 4 | 3 3 . 4 1 3 Penetration Max . | . . . . . . Secondary Targets 3 | . . . 3 . . Max Gunslinging Chain 1 | . . . 1 . . Shots Hit Robots 205 | 25 12 . 123 . 45 Core Hits 125 | 7 34 . 59 3 22 Critical Kills . | . . . . . . Critical Parts Destroyed 1 | . . . 1 . . Critical Strikes 1 | . . . 1 . . Destroy 1 | . . . 1 . . Melee Attacks . | . . . . . . Impact . | . . . . . . Slashing . | . . . . . . Piercing . | . . . . . . Sneak Attacks . | . . . . . . Combat Hostiles . | . . . . . . Follow-up Attacks . | . . . . . . Damage Inflicted 5218 | 261 1225 . 2216 210 1306 Guns 2431 | 240 77 . 1718 . 396 Cannons 361 | . . . . . 361 Explosions 2426 | 21 1148 . 498 210 549 Melee . | . . . . . . Ramming . | . . . . . . Kinetic 2215 | 111 23 . 1705 . 376 Thermal 798 | 21 . . . . 777 Explosive 1989 | . 1148 . 498 210 133 Electromagnetic 216 | 129 54 . 13 . 20 Impact . | . . . . . . Slashing . | . . . . . . Piercing . | . . . . . . Highest Corruption . | . . . . . . Average Corruption . | . . . . . . Corruption Purged . | . . . . . . Corruption Blocked . | . . . . . . Overload Shots . | . . . . . . Overflow Damage 63 | . 6 . . 39 18 Projectiles . | . . . . . . Explosions 63 | . 6 . . 39 18 Melee . | . . . . . . Knockbacks . | . . . . . . Impact . | . . . . . . Kinetic . | . . . . . . Secondary . | . . . . . . Self-Inflicted Damage 566 | . 86 . . . 480 Shots 28 | . 3 . . . 25 Rammed . | . . . . . . Targets Rammed . | . . . . . . Kicked . | . . . . . . Crushed . | . . . . . . Highest Temperature 559 | 60 56 . 96 . 559 Average Temperature 73 | 28 13 . 25 . 231 Received Heat Transfer 471 | . 132 . 339 . . Effects 6 | . . . . . 6 Shutdowns 1 | . . . . . 1 Energy Bleed 1 | . . . . . 1 Interference 1 | . . . . . 1 Short Circuit 1 | . . . . . 1 Damage (minor) 2 | . . . . . 2 Siege Activations . | . . . . . . Martial Activations . | . . . . . . Shielding Activations . | . . . . . . Robots Disrupted . | . . . . . . Combat Hostiles . | . . . . . . Robots Corrupted . | . . . . . . Combat Hostiles . | . . . . . . Parts Fried 1 | 1 . . . . . Impact Corruptions . | . . . . . . Robots Melted . | . . . . . . Combat Hostiles . | . . . . . . Parts Melted . | . . . . . . Heat Transferred 1010 | 50 . . . . 960 Parts Sabotaged . | . . . . . . Parts Stolen . | . . . . . . Parts Stripped . | . . . . . . Power Chain Reactions 1 | 1 . . . . . Alert | -11 -10 -10 -9 -9 -9 ------- Run | Yrd Mat Min Mat Min Exi Maximum Alert Level 2 | . 1 . 2 1 . Low Security (%) 63 | 100 72 100 57 3 . Level 1 33 | . 27 . 37 96 . Level 2 3 | . . . 4 . . Level 3 . | . . . . . . Level 4 . | . . . . . . Level 5 . | . . . . . . High Security . | . . . . . . Max Security . | . . . . . . Peak Influence 408 | 5 308 91 408 267 . Initial 152 | . . 91 3 152 . Average 161 | . 121 52 186 251 . Influence Increases 1534 | 20 467 . 932 115 . Destroy 0b10 Robot/C 920 | . 280 . 560 80 . Destroy 0b10 Robot/NC 105 | 20 25 . 60 . . Destroy Leader 228 | . 54 . 164 10 . Allied During Kill 10 | . . . 10 . . Successful Hack 15 | . 15 . . . . Disable Machine 60 | . 15 . 30 15 . Destroy Structure 136 | . 78 . 48 10 . Partial Spotted 15 | . . . 15 . . Lose Combat Pursuer 45 | . . . 45 . . Influence Decreases 1534 | 20 231 225 551 270 237 Entered New Map 630 | . . 145 8 240 237 Time Decay 884 | 20 231 80 523 30 . Lost Ally 20 | . . . 20 . . Squads Dispatched 4 | . 1 . 3 . . Investigation 1 | . 1 . . . . Extermination . | . . . . . . Reinforcement 3 | . . . 3 . . Assault . | . . . . . . Garrison . | . . . . . . Intercept . | . . . . . . Searches Triggered . | . . . . . . Construction Impeded . | . . . . . . Haulers Reinforced . | . . . . . . Active Scanning Responses . | . . . . . . Cargo Convoy Interrupts . | . . . . . . Stealth | -11 -10 -10 -9 -9 -9 --------- Run | Yrd Mat Min Mat Min Exi Distress Signals 3 | . . . 3 . . Communications Jammed . | . . . . . . Distress Signals . | . . . . . . Times Spotted 73 | . 18 . 43 4 8 Peak Tracking Total 9 | . 6 . 5 4 9 Tactical Retreats 2 | . . . 2 . . Traps | -11 -10 -10 -9 -9 -9 ------- Run | Yrd Mat Min Mat Min Exi Traps Triggered 1 | . . . 1 . . Indirectly . | . . . . . . Trap Hack Attempts . | . . . . . . Triggered . | . . . . . . Disarmed . | . . . . . . Reprogrammed . | . . . . . . Reused . | . . . . . . Traps Extracted . | . . . . . . Installed . | . . . . . . Triggered . | . . . . . . Machines | -11 -10 -10 -9 -9 -9 ---------- Run | Yrd Mat Min Mat Min Exi Machines Disabled 12 | . 3 . 2 1 6 Max in Single Turn 2 | . 1 . 1 1 2 Machines Repaired . | . . . . . . Machines Dismantled . | . . . . . . Machines Sabotaged . | . . . . . . Overloaded Fab Kills . | . . . . . . Hacking | -11 -10 -10 -9 -9 -9 --------- Run | Yrd Mat Min Mat Min Exi Machines Accessed 10 | . 3 . 5 . 2 Terminals 8 | . 3 . 5 . . Fabricators . | . . . . . . Repair Stations . | . . . . . . Recycling Units . | . . . . . . Scanalyzers . | . . . . . . Garrison Access . | . . . . . . Total Hacks 21 | . 9 . 10 . 2 Successful 10 | . 5 . 3 . 2 Failed 11 | . 4 . 7 . . Catastrophic 3 | . 1 . 2 . . Database Lockouts . | . . . . . . Manual 12 | . 8 . 3 . 1 Terminals 19 | . 9 . 10 . . Fabricators . | . . . . . . Repair Stations . | . . . . . . Recycling Units . | . . . . . . Scanalyzers . | . . . . . . Garrison Access . | . . . . . . Terminal Hacks 8 | . 3 . 3 . 2 Record 1 | . . . . . 1 Prototype ID Bank 1 | . . . 1 . . Branch Access Points 1 | . . . 1 . . Alert Level 1 | . 1 . . . . Maintenance Status 1 | . . . 1 . . Registered Components 1 | . 1 . . . . Zone Layout 1 | . 1 . . . . Proto ID Catalog 1 | . . . . . 1 Fabricator Hacks . | . . . . . . Repair Station Hacks . | . . . . . . Recycling Unit Hacks . | . . . . . . Scanalyzer . | . . . . . . Garrison Access Hacks . | . . . . . . Unauthorized Hacks 2 | . 2 . . . . Terminals 2 | . 2 . . . . Botnet 2 | . 2 . . . . Fabricators . | . . . . . . Repair Stations . | . . . . . . Recycling Units . | . . . . . . Scanalyzers . | . . . . . . Garrison Access . | . . . . . . Data Cores Recovered . | . . . . . . Used . | . . . . . . Hacking Detections 5 | . 3 . 2 . . Full Trace Events 1 | . 1 . . . . Feedback Events . | . . . . . . Feedback Blocked . | . . . . . . Robot Schematics Acquired . | . . . . . . Robots Built . | . . . . . . Authchips . | . . . . . . Time . | . . . . . . Total Robot Build Rating . | . . . . . . Part Schematics Acquired . | . . . . . . Parts Built . | . . . . . . Authchips . | . . . . . . Time . | . . . . . . Total Part Build Rating . | . . . . . . Parts Repaired . | . . . . . . Time . | . . . . . . Parts Recycled . | . . . . . . Recycled Matter . | . . . . . . Retrieved Matter . | . . . . . . Retrieved Components . | . . . . . . Parts Scanalyzed . | . . . . . . Part Schematics Acquired . | . . . . . . Parts Damaged . | . . . . . . Bothacking | -11 -10 -10 -9 -9 -9 ------------ Run | Yrd Mat Min Mat Min Exi Used RIF Installer . | . . . . . . Robots Hacked . | . . . . . . Non-combat . | . . . . . . Combat . | . . . . . . Robot Hacks Applied . | . . . . . . Relay Couplers Released . | . . . . . . Fabnet Peak Effective % . | . . . . . . Robots Rewired . | . . . . . . Allies Hacked . | . . . . . . Hacks Repelled . | . . . . . . Allies | -11 -10 -10 -9 -9 -9 -------- Run | Yrd Mat Min Mat Min Exi Total Allies 2 | . . 2 . . . Largest Group 2 | . . 2 2 . . Highest-Rated Group 41 | . . 41 41 . . Highest-Rated Ally 31 | . . 31 31 . . Total Orders . | . . . . . . Ally Attacks 12 | . . . 12 . . Total Damage 231 | . . . 231 . . Kills 4 | . . . 4 . . Allies Corrupted . | . . . . . . Allies Melted . | . . . . . . Intel | -11 -10 -10 -9 -9 -9 ------- Run | Yrd Mat Min Mat Min Exi Active Infowar (turns) 1269 | 34 769 173 293 . . Seismic 1269 | 34 769 173 293 . . Robot Analysis Total . | . . . . . . Derelict Logs Recovered . | . . . . . . Drone Launches . | . . . . . . Drone Recoveries . | . . . . . . Exploration | -11 -10 -10 -9 -9 -9 ------------- Run | Yrd Mat Min Mat Min Exi Turns Passed 5343 | 191 769 173 2953 60 1197 Spaces Moved 2469 | 83 423 107 1347 23 486 Core 14 | 14 . . . . . Treads 2128 | 69 423 107 1347 23 159 Legs . | . . . . . . Wheels 327 | . . . . . 327 Hover . | . . . . . . Flight . | . . . . . . Fastest Speed 50 | 50 160 160 160 240 115 Average Speed 180 | 141 160 160 182 240 202 Slowest Speed 250 | 160 160 160 240 240 250 Overloaded Moves . | . . . . . . Propulsion Burnouts . | . . . . . . Robots Hopped . | . . . . . . Potential Cave-ins . | . . . . . . Cave-ins Triggered . | . . . . . . Exploration Rate (%) 45 | 7 62 34 94 7 66 Regions Visited 5 Branch Regions 3 Pre-discovered Areas 1 | . . . . . 1 Known Exits Taken 1 | . . . 1 . . Unknown Exits Taken 4 | 1 1 1 . 1 . Scrap Searched . | . . . . . . Spaces Dug . | . . . . . . Terrain Destroyed 187 | 6 90 . 51 17 23 Melee . | . . . . . . Projectile . | . . . . . . AOE 187 | 6 90 . 51 17 23 Terrain Rammed . | . . . . . . Walls Destroyed . | . . . . . . Machines Disabled . | . . . . . . Actions | -11 -10 -10 -9 -9 -9 --------- Run | Yrd Mat Min Mat Min Exi Total 3068 | 125 483 109 1673 26 652 Wait 216 | 5 23 3 127 . 58 Move 2464 | 82 422 106 1346 22 486 Hop . | . . . . . . Pick Up 63 | 12 6 . 32 . 13 Fast Attach 9 | . . . 7 . 2 Attach 26 | 7 . . 2 . 17 Detach 9 | . . . . . 9 Swap 47 | . 4 . 26 2 15 Drop 61 | 1 2 . 41 . 17 Fire 173 | 18 26 . 92 2 35 Melee . | . . . . . . Ram . | . . . . . . Kick . | . . . . . . Crush . | . . . . . . Escape Stasis . | . . . . . . Rewire . | . . . . . . Trap . | . . . . . . Miscellaneous . | . . . . . . Route ------- -11/Scrapyard -10/Materials (discovered 3 exits: *Mat x2 / [*Min]) -10/Mines -9/Materials (discovered 4 exits: [*Mat x3] / *Min) -9/Mines -9/Exiles History --------- Turn | Location | Event 2 | -11/Scrapyard | Met Revision 17 5 | -11/Scrapyard | Discovered new exit (range 15) 192 | -11/Scrapyard | Entered Materials 316 | -10/Materials | Build established: Mutant 482 | -10/Materials | Discovered new exit (range 4) 739 | -10/Materials | Discovered new exit (range 7) 797 | -10/Materials | Discovered new exit (range 15) 961 | -10/Materials | Entered Mines 1118 | -10/Mines | Discovered new exit (range 6) 1134 | -10/Mines | Entered Materials 1134 | -9/Materials | Accompanied by 2 allies 1134 | -9/Materials | Evolved 2 slots: Utility x1, Weapon x1 1139 | -9/Materials | Led the pair of lost Derelicts to an unsafe place 1165 | -9/Materials | Identified exit to Mines 1761 | -9/Materials | Discovered new exit (range 16) 2143 | -9/Materials | Build established: Scavenger-Tank 2731 | -9/Materials | Discovered new exit (range 16) 3899 | -9/Materials | Discovered new exit (range 16) 4087 | -9/Materials | Entered Mines 4125 | -9/Mines | Met a Derelict bent on vengeance 4138 | -9/Mines | Deemed a non-threat by the Exiles lab entrance 4138 | -9/Mines | Discovered new exit (range 5) 4147 | -9/Mines | Entered Exiles 4205 | -9/Exiles | Met 8R-AWN 4246 | -9/Exiles | Met EX-HEX 4363 | -9/Exiles | Met EX-DEC 4402 | -9/Exiles | Learned location of Zion (-6) 4659 | -9/Exiles | Met EX-BIN 4685 | -9/Exiles | Aligned with FarCom system 4687 | -9/Exiles | Given EX-Vault access code 4731 | -9/Exiles | Opened EX-Vault 4740 | -9/Exiles | Found AWS/Gauss 4745 | -9/Exiles | Found Firepult 4756 | -9/Exiles | Found Army-in-a-Box 4793 | -9/Exiles | Warned to stay clear of 0b10 Research branches 4874 | -9/Exiles | Build established: Hauler-Gunner 5087 | -9/Exiles | Attacked by the Exiles 5225 | -9/Exiles | Core integrity fell below 50% 5246 | -9/Exiles | Lost 3 parts (1u2w) 5286 | -9/Exiles | Core integrity fell below 20% 5344 | -9/Exiles | Destroyed by 8R-AWN with 8R-AWN's Boregun Last Messages --------------- 05301_ Overheating: Short circuit. 05302_ Penetrated by HV Slug. 05302_ Critical hit (Destroy). 05306_ Penetrated by HV Slug. 05306_ Critical hit (Destroy). 05306_ Penetrated by HV Slug. 05310_ Med. Armor Plating destroyed. 05314_ Penetrated by HV Slug. 05314_ Critical hit (Destroy). 05314_ Penetrated by HV Slug. 05319_ HV Slug penetrates Wall. 05319_ Penetrated by HV Slug. 05327_ HV Slug penetrates Earth. 05329_ Dropped Broken Arm. Treads. 05331_ Penetrated by HV Slug. 05331_ Critical hit (Destroy). 05331_ Arm. Treads destroyed. 05336_ Penetrated by HV Slug. 05344_ Critical hit (Destroy). 05344_ Penetrated by HV Slug. Map ----- +----------------------------------------------------+ | ?????????????????????????????????????????????????? | | ?????????????????????????????????????????????????? | | ?????????????????????????????????????????????????? | | ?????????????????????????????????????????????????? | | ?????????????????????????????????????????????????? | | ?????????????????????????????????????????????????? | | ?????????????????????????????????????????????????? | | ?????????????????????????????????????????????????? | | ?????????????????????????????????????????????????? | | ?????????????????????????????????????????????????? | | ?????????????????????????????????????????????????? | | ??????????????? ??????????????#######????????????? | | ??????????????? ######???????#!! "#????????????? | | ?????????????? #""#??????# "#????????????? | | ?????????????? ??????# "#????????????? | | ??????????????" #????## ""#????????????# | | ??????????????" #####" ""#???????????? | | ???????????????# ##" "#????????????" | | ????????????????# #"" ###????????????" | | ???????????????????# #######???????"" | | ?????????????????????## #???????"" | | ??????????????????????### #?????? | | ????????????????######## #???????" | | ??????????????### !!""" #??????# | | ??????????????# ;! g # "##???### | | ????????????????#! @ ## #####X# | | ????????????????#! ##?## | | ????????????????# """" # #???#"# | | ????????????????######;### #???#### | | ????????????????????# #??# #??????### % | | ???????????????????# #???# #????????##" | | ??????????????????# #????# #??????????"" | | ?????????????????# #?????# #???????????## | | ????????????????# #??????# #????????????##" | | ???????????????? #???????? ??????????????#""" | | ??????????????? ?????????? ?????????????##" | | ?????????????? ??????????? ?????????????#"" | | ?????????????????????????? ?????????????#""" | | ?????????????????????????? ?????????????""" | | ?????????????????????????? ?????????????""" | | ?????????????????????????? ?????????????"" | | ????????????????????????????????????????""" | | ????????????????????????????????????????"" | | ????????????????????????????????????????#"" | | ????????????????????????????????????????#"""" | | ?????????????????????????????????????????# | | ??????????????????????????????????????????" | | ??????????????????????????????????????????"""" | | ???????????????????????????????????????????" | | ??????????????????????????????????????????? | +----------------------------------------------------+ Best States ------------- Heat Dissipation 28 Energy Generation 18 Energy Capacity 280 Matter Stores 300 Matter Capacity 300 Sight Range 16 Terrain Scan Density 10 Armor Coverage 450 Evasion (%) 50 Recoil Reduction 2 Item Schematics ----------------- None Robot Schematics ------------------ None Fabricated ------------ Nothing Repaired ---------- Nothing Alien Tech Used ----------------- None Achievements -------------- None Challenges ------------ None Game ------ Seed ImprinterSignalHammer Manual? 0 Play Time 00:29:57 Cumulative 221.6 hours Start 2025.08.29 @ 03:51:41 End 2025.08.29 @ 04:19:57 Sessions 1 Manual Loads 0 Difficulty Rogue Special Mode None Game No. 331 Rogue 331 Adventurer 0 Explorer 0 Win Type - Total 4 Types 3/0/1/0/0/0/0/0/0/0 Lore% 80 Gallery% 76 Achievement% 57 Wizard Run 0 Options --------- Layout 1 ASCII 0 Keyboard 0 Movement Mouse Keybinds 0 Fullscreen 1 Font 32/SmallcapsGlow Map View 50x35 Zoom Use 0% Tactical HUD 1 Map Filters NONE Filters NONE Steam 1 RUN: cede0d6e-cf5f-411a-ab44-b42c619b679f